[Event "Live Chess"]
[Site "Chess.com"]
[Date "2023.05.21"]
[Round "-"]
[White "JanMur7"]
[Black "atunnacl"]
[Result "1-0"]
[WhiteElo "1971"]
[BlackElo "1691"]
[TimeControl "300"]
[EndTime "7:07:54 PDT"]
[Termination "JanMur7 won on time"]

1. e4 {[%clk 0:04:57.7]} 1... c5 {[%clk 0:04:58.5]} 2. d4 {[%clk 0:04:55.2]}
2... cxd4 {[%clk 0:04:55]} 3. c3 {[%clk 0:04:54.3]} 3... dxc3 {[%clk 0:04:50.3]}
4. Nxc3 {[%clk 0:04:54.2]} 4... d6 {[%clk 0:04:48.4]} 5. Bc4 {[%clk 0:04:50.4]}
5... e6 {[%clk 0:04:41.1]} 6. Nf3 {[%clk 0:04:48.2]} 6... Nf6 {[%clk 0:04:39.9]}
7. Bf4 {[%clk 0:04:46]} 7... Be7 {[%clk 0:04:19.2]} 8. e5 {[%clk 0:04:43]} 8...
dxe5 {[%clk 0:04:16.5]} 9. Qxd8+ {[%clk 0:04:41.2]} 9... Bxd8 {[%clk 0:04:15.3]}
10. Bxe5 {[%clk 0:04:38]} 10... Nc6 {[%clk 0:04:12.9]} 11. Bd6 {[%clk
0:04:36.2]} 11... a6 {[%clk 0:04:07.6]} 12. O-O {[%clk 0:04:30.2]} 12... Be7
{[%clk 0:04:05]} 13. Bxe7 {[%clk 0:04:28.9]} 13... Nxe7 {[%clk 0:04:03.5]} 14.
Bb3 {[%clk 0:04:26]} 14... b5 {[%clk 0:04:00.9]} 15. a4 {[%clk 0:04:23.4]} 15...
b4 {[%clk 0:03:56.5]} 16. Ne2 {[%clk 0:04:22.1]} 16... Bb7 {[%clk 0:03:55]} 17.
Ne5 {[%clk 0:04:19.7]} 17... Rd8 {[%clk 0:03:42.5]} 18. Rfd1 {[%clk 0:04:15.5]}
18... O-O {[%clk 0:03:40.1]} 19. Rac1 {[%clk 0:04:04.4]} 19... Ned5 {[%clk
0:03:37.3]} 20. Bxd5 {[%clk 0:03:57.3]} 20... Nxd5 {[%clk 0:03:34.3]} 21. Nd3
{[%clk 0:03:53.7]} 21... a5 {[%clk 0:03:30.4]} 22. Nc5 {[%clk 0:03:49.7]} 22...
Bc6 {[%clk 0:03:23.5]} 23. Nxe6 {[%clk 0:03:45.1]} 23... fxe6 {[%clk 0:03:21.2]}
24. Rxc6 {[%clk 0:03:42.3]} 24... e5 {[%clk 0:03:07.4]} 25. Rcc1 {[%clk
0:03:24.4]} 25... Nf4 {[%clk 0:03:02.3]} 26. Nxf4 {[%clk 0:03:19.5]} 26... exf4
{[%clk 0:03:01]} 27. h4 {[%clk 0:03:04.8]} 27... Rxd1+ {[%clk 0:02:51.7]} 28.
Rxd1 {[%clk 0:03:02.2]} 28... Re8 {[%clk 0:02:35.6]} 29. Kf1 {[%clk 0:02:52]}
29... Re5 {[%clk 0:02:29.7]} 30. Rd4 {[%clk 0:02:47.3]} 30... Rf5 {[%clk
0:02:19.7]} 31. Ke2 {[%clk 0:02:43.5]} 31... Kf7 {[%clk 0:02:15.1]} 32. Kf3
{[%clk 0:02:41.9]} 32... Kg6 {[%clk 0:01:53.6]} 33. Rxf4 {[%clk 0:02:25.8]}
33... Rc5 {[%clk 0:01:45.1]} 34. Re4 {[%clk 0:02:21]} 34... Kh5 {[%clk
0:01:38.3]} 35. g3 {[%clk 0:02:13.7]} 35... g5 {[%clk 0:01:32.7]} 36. hxg5
{[%clk 0:02:11.2]} 36... Kxg5 {[%clk 0:01:31.4]} 37. b3 {[%clk 0:02:03.6]} 37...
Rc3+ {[%clk 0:01:26.6]} 38. Re3 {[%clk 0:02:02.4]} 38... Rc5 {[%clk 0:01:24.6]}
39. Kg2 {[%clk 0:01:59.2]} 39... h5 {[%clk 0:01:15.8]} 40. Rf3 {[%clk
0:01:51.4]} 40... Rd5 {[%clk 0:01:07.6]} 41. Rf8 {[%clk 0:01:48.3]} 41... Rd6
{[%clk 0:01:03.2]} 42. Rg8+ {[%clk 0:01:42.1]} 42... Kh6 {[%clk 0:00:59]} 43.
Ra8 {[%clk 0:01:37.5]} 43... Rd5 {[%clk 0:00:57]} 44. Rf8 {[%clk 0:01:32.3]}
44... Kg5 {[%clk 0:00:53.5]} 45. Rf3 {[%clk 0:01:31.6]} 45... Kh6 {[%clk
0:00:52.1]} 46. Re3 {[%clk 0:01:30.4]} 46... Kg5 {[%clk 0:00:49.9]} 47. Kh3
{[%clk 0:01:25.1]} 47... Kf5 {[%clk 0:00:46.3]} 48. Kg2 {[%clk 0:01:22.7]} 48...
Rd2 {[%clk 0:00:38.6]} 49. Re8 {[%clk 0:01:12.5]} 49... Rd5 {[%clk 0:00:30.2]}
50. Rh8 {[%clk 0:01:09.9]} 50... Kg4 {[%clk 0:00:28.4]} 51. Rb8 {[%clk
0:01:06.8]} 51... Kg5 {[%clk 0:00:26]} 52. Rb5 {[%clk 0:00:56.1]} 52... Rf5
{[%clk 0:00:21]} 53. Rxf5+ {[%clk 0:00:52.3]} 53... Kxf5 {[%clk 0:00:19.8]} 54.
Kf3 {[%clk 0:00:51.7]} 54... Ke5 {[%clk 0:00:17]} 55. Ke3 {[%clk 0:00:50.6]}
55... Kf5 {[%clk 0:00:13.1]} 56. f3 {[%clk 0:00:49.3]} 56... Ke5 {[%clk
0:00:11.8]} 57. g4 {[%clk 0:00:48.4]} 57... hxg4 {[%clk 0:00:10.1]} 58. fxg4
{[%clk 0:00:48.3]} 58... Kf6 {[%clk 0:00:09]} 59. Kf4 {[%clk 0:00:47.3]} 59...
Kg6 {[%clk 0:00:07]} 60. g5 {[%clk 0:00:47.2]} 60... Kf7 {[%clk 0:00:04.6]} 61.
Kf5 {[%clk 0:00:47.1]} 61... Kg7 {[%clk 0:00:03.5]} 62. Ke5 {[%clk 0:00:45.6]}
62... Kg6 {[%clk 0:00:02.2]} 63. Kd5 {[%clk 0:00:45.5]} 63... Kxg5 {[%clk
0:00:01.3]} 64. Kc5 {[%clk 0:00:45.4]} 64... Kf4 {[%clk 0:00:00.6]} 65. Kb5
{[%clk 0:00:45.3]} 1-0

[Event "Live Chess"]
[Site "Chess.com"]
[Date "2023.05.21"]
[Round "-"]
[White "Man-Del-Brot"]
[Black "stevochess11"]
[Result "1-0"]
[WhiteElo "1061"]
[BlackElo "1674"]
[TimeControl "300"]
[EndTime "7:07:56 PDT"]
[Termination "Man-Del-Brot won - game abandoned"]

1. g4 {[%clk 0:04:54.9]} 1... d5 {[%clk 0:04:58.2]} 2. Bg2 {[%clk 0:04:53.2]}
2... Bxg4 {[%clk 0:04:55]} 3. c4 {[%clk 0:04:52.1]} 3... c6 {[%clk 0:04:53.3]}
4. cxd5 {[%clk 0:04:43.7]} 4... cxd5 {[%clk 0:04:51.2]} 5. Qb3 {[%clk
0:04:42.3]} 5... Qd7 {[%clk 0:04:35.1]} 6. Qxd5 {[%clk 0:04:15]} 6... Qxd5
{[%clk 0:04:32.3]} 7. Bxd5 {[%clk 0:04:13.8]} 7... Nc6 {[%clk 0:04:30.5]} 8. Nc3
{[%clk 0:04:01.1]} 8... O-O-O {[%clk 0:04:27.2]} 9. Bxc6 {[%clk 0:03:56.9]} 9...
bxc6 {[%clk 0:04:25.1]} 10. b4 {[%clk 0:03:33.9]} 10... e5 {[%clk 0:04:21.7]}
11. a3 {[%clk 0:03:27.7]} 11... Nf6 {[%clk 0:04:17.9]} 12. d3 {[%clk 0:03:23.7]}
12... c5 {[%clk 0:04:13.2]} 13. bxc5 {[%clk 0:03:12.5]} 13... Bxc5 {[%clk
0:04:10.6]} 14. Bg5 {[%clk 0:02:59.9]} 14... Bd4 {[%clk 0:04:07.9]} 15. Rc1
{[%clk 0:02:55.6]} 15... Bxc3+ {[%clk 0:04:02.7]} 16. Rxc3+ {[%clk 0:02:53.9]}
16... Kb8 {[%clk 0:04:00.5]} 17. f3 {[%clk 0:02:43.6]} 17... Be6 {[%clk
0:03:55.3]} 18. Nh3 {[%clk 0:02:40.9]} 18... Bxh3 {[%clk 0:03:51.9]} 19. Kf2
{[%clk 0:02:37.1]} 19... Rd6 {[%clk 0:03:49]} 20. Rb1+ {[%clk 0:02:35.1]} 20...
Ka8 {[%clk 0:03:46.9]} 21. Bxf6 {[%clk 0:02:28.6]} 21... Rxf6 {[%clk 0:03:44]}
22. Kg3 {[%clk 0:02:26]} 22... Bd7 {[%clk 0:03:38.6]} 23. Rc7 {[%clk 0:02:23.5]}
23... Bc6 {[%clk 0:03:26]} 24. Rc1 {[%clk 0:02:20.3]} 24... Bb7 {[%clk 0:03:20]}
25. Rd7 {[%clk 0:01:41.1]} 25... Rc8 {[%clk 0:03:10.2]} 26. Rxc8+ {[%clk
0:01:28.1]} 26... Bxc8 {[%clk 0:03:07.5]} 27. Rd8 {[%clk 0:01:22.2]} 27... Kb7
{[%clk 0:03:04.4]} 28. h4 {[%clk 0:01:16.8]} 28... h5 {[%clk 0:02:58.5]} 29. Re8
{[%clk 0:01:02.6]} 29... Rg6+ {[%clk 0:02:54.6]} 30. Kf2 {[%clk 0:00:59.3]}
30... f6 {[%clk 0:02:51.6]} 31. e4 {[%clk 0:00:52.3]} 31... Bh3 {[%clk
0:02:47.6]} 32. Ke3 {[%clk 0:00:40.2]} 32... Rg1 {[%clk 0:02:41]} 33. Re7+
{[%clk 0:00:35.4]} 1-0

[Event "Live Chess"]
[Site "Chess.com"]
[Date "2023.05.21"]
[Round "-"]
[White "Mugzwang"]
[Black "HonestJoe1"]
[Result "0-1"]
[WhiteElo "1476"]
[BlackElo "2092"]
[TimeControl "300"]
[EndTime "7:08:07 PDT"]
[Termination "HonestJoe1 won by resignation"]

1. Nf3 {[%clk 0:04:53.2]} 1... c5 {[%clk 0:04:57.6]} 2. c4 {[%clk 0:04:50.6]}
2... Nf6 {[%clk 0:04:56.1]} 3. Nc3 {[%clk 0:04:47.4]} 3... g6 {[%clk 0:04:55.1]}
4. g3 {[%clk 0:04:41.2]} 4... Bg7 {[%clk 0:04:54.2]} 5. Bg2 {[%clk 0:04:40.4]}
5... O-O {[%clk 0:04:53.8]} 6. O-O {[%clk 0:04:39.1]} 6... Nc6 {[%clk
0:04:53.5]} 7. d4 {[%clk 0:04:32.5]} 7... cxd4 {[%clk 0:04:52.6]} 8. Nxd4 {[%clk
0:04:31.6]} 8... Ng4 {[%clk 0:04:51.9]} 9. Nxc6 {[%clk 0:04:26.5]} 9... dxc6
{[%clk 0:04:49.5]} 10. e4 {[%clk 0:04:02.6]} 10... Be6 {[%clk 0:04:43.1]} 11.
Qe2 {[%clk 0:03:43.4]} 11... Ne5 {[%clk 0:04:39.2]} 12. b3 {[%clk 0:03:38.6]}
12... Qd3 {[%clk 0:04:31.4]} 13. Qxd3 {[%clk 0:03:16.6]} 13... Nxd3 {[%clk
0:04:29.7]} 14. Bd2 {[%clk 0:03:10.9]} 14... Rfd8 {[%clk 0:04:22.6]} 15. f4
{[%clk 0:02:53.3]} 15... Bd4+ {[%clk 0:04:20.3]} 16. Kh1 {[%clk 0:02:50.5]}
16... Nf2+ {[%clk 0:04:19.2]} 17. Kg1 {[%clk 0:02:41.2]} 17... Nxe4+ {[%clk
0:04:16.2]} 18. Kh1 {[%clk 0:02:38.4]} 18... Nxd2 {[%clk 0:04:14.3]} 19. Rac1
{[%clk 0:02:27.8]} 0-1

[Event "Live Chess"]
[Site "Chess.com"]
[Date "2023.05.21"]
[Round "-"]
[White "chrisbradgate"]
[Black "gmnorfolk"]
[Result "0-1"]
[WhiteElo "864"]
[BlackElo "2137"]
[TimeControl "300"]
[EndTime "7:08:28 PDT"]
[Termination "gmnorfolk won by checkmate"]

1. d4 {[%clk 0:04:57.9]} 1... Nf6 {[%clk 0:04:53]} 2. Bf4 {[%clk 0:04:55.1]}
2... g6 {[%clk 0:04:51.3]} 3. e3 {[%clk 0:04:54]} 3... d6 {[%clk 0:04:50.2]} 4.
c3 {[%clk 0:04:53]} 4... Bg7 {[%clk 0:04:49.3]} 5. Nf3 {[%clk 0:04:46.3]} 5...
O-O {[%clk 0:04:49.2]} 6. Bd3 {[%clk 0:04:35.9]} 6... Nbd7 {[%clk 0:04:49.1]} 7.
O-O {[%clk 0:04:21.3]} 7... c5 {[%clk 0:04:49]} 8. e4 {[%clk 0:04:11.8]} 8...
cxd4 {[%clk 0:04:46]} 9. cxd4 {[%clk 0:04:03]} 9... b6 {[%clk 0:04:45.9]} 10.
Qd2 {[%clk 0:03:59]} 10... Bb7 {[%clk 0:04:43.3]} 11. Bh6 {[%clk 0:03:53.6]}
11... e5 {[%clk 0:04:41.6]} 12. Bxg7 {[%clk 0:03:51.4]} 12... Kxg7 {[%clk
0:04:40]} 13. dxe5 {[%clk 0:03:50.3]} 13... dxe5 {[%clk 0:04:38.8]} 14. Re1
{[%clk 0:03:38.1]} 14... Qe7 {[%clk 0:04:36.6]} 15. Bb5 {[%clk 0:03:34.6]} 15...
Nc5 {[%clk 0:04:33.4]} 16. Bd3 {[%clk 0:03:25.1]} 16... Rfd8 {[%clk 0:04:10.5]}
17. Qg5 {[%clk 0:03:03]} 17... Nxd3 {[%clk 0:04:08.6]} 18. Re3 {[%clk
0:02:59.4]} 18... h6 {[%clk 0:04:05.4]} 19. Qg3 {[%clk 0:02:51.3]} 19... Nh5
{[%clk 0:04:02.1]} 20. Qh4 {[%clk 0:02:44.6]} 20... Qxh4 {[%clk 0:03:57.4]} 21.
Nxh4 {[%clk 0:02:42.7]} 21... Nxb2 {[%clk 0:03:53.3]} 22. g3 {[%clk 0:02:27.7]}
22... Rd1+ {[%clk 0:03:47.7]} 23. Kg2 {[%clk 0:02:25.1]} 23... Rc8 {[%clk
0:03:42.4]} 24. Rc3 {[%clk 0:02:06.9]} 24... Rxc3 {[%clk 0:03:38.8]} 25. Nxc3
{[%clk 0:02:05.3]} 25... Rxa1 {[%clk 0:03:38.6]} 26. Nd5 {[%clk 0:02:01.4]}
26... Bxd5 {[%clk 0:03:21.1]} 27. exd5 {[%clk 0:02:00.2]} 27... Rd1 {[%clk
0:03:20.2]} 28. f3 {[%clk 0:01:51]} 28... Rxd5 {[%clk 0:03:17.6]} 29. Kh3 {[%clk
0:01:49.8]} 29... Rd2 {[%clk 0:03:13.8]} 30. a4 {[%clk 0:01:42.7]} 30... f5
{[%clk 0:03:09.4]} 31. g4 {[%clk 0:01:39.9]} 31... Nf4+ {[%clk 0:03:05.8]} 32.
Kg3 {[%clk 0:01:38.2]} 32... Kf6 {[%clk 0:03:01.3]} 33. h3 {[%clk 0:01:32.7]}
33... Rg2+ {[%clk 0:02:48.4]} 34. Nxg2 {[%clk 0:01:30.6]} 34... Nxg2 {[%clk
0:02:47.3]} 35. Kxg2 {[%clk 0:01:29.7]} 35... e4 {[%clk 0:02:45.8]} 36. fxe4
{[%clk 0:01:27.5]} 36... fxe4 {[%clk 0:02:44.3]} 37. Kf2 {[%clk 0:01:26.1]}
37... Nxa4 {[%clk 0:02:42.1]} 38. Ke3 {[%clk 0:01:24.9]} 38... Ke5 {[%clk
0:02:41.6]} 39. Kd2 {[%clk 0:01:22.7]} 39... Kd4 {[%clk 0:02:40]} 40. Ke2 {[%clk
0:01:21.5]} 40... g5 {[%clk 0:02:38.6]} 41. Kd2 {[%clk 0:01:17.3]} 41... e3+
{[%clk 0:02:37.7]} 42. Ke2 {[%clk 0:01:16.3]} 42... Ke4 {[%clk 0:02:37.3]} 43.
Kd1 {[%clk 0:01:14.4]} 43... Kd3 {[%clk 0:02:36.2]} 44. Ke1 {[%clk 0:01:13.2]}
44... e2 {[%clk 0:02:35.8]} 45. Kf2 {[%clk 0:01:10.2]} 45... Kd2 {[%clk
0:02:35.3]} 46. Kf3 {[%clk 0:01:08.5]} 46... e1=Q {[%clk 0:02:35.2]} 47. h4
{[%clk 0:01:05.9]} 47... Qe3+ {[%clk 0:02:35]} 48. Kg2 {[%clk 0:01:03.9]} 48...
Qf4 {[%clk 0:02:34.5]} 49. Kg1 {[%clk 0:01:01.5]} 49... Ke2 {[%clk 0:02:31.3]}
50. hxg5 {[%clk 0:00:57]} 50... Qg3+ {[%clk 0:02:30.1]} 51. Kh1 {[%clk
0:00:51.6]} 51... Kf1 {[%clk 0:02:29.6]} 52. gxh6 {[%clk 0:00:48.1]} 52... Qh4#
{[%clk 0:02:28.2]} 0-1

[Event "Live Chess"]
[Site "Chess.com"]
[Date "2023.05.21"]
[Round "-"]
[White "LanceMaster23"]
[Black "wot-not"]
[Result "1-0"]
[WhiteElo "1958"]
[BlackElo "1541"]
[TimeControl "300"]
[EndTime "7:08:30 PDT"]
[Termination "LanceMaster23 won on time"]

1. Nf3 {[%clk 0:04:58.9]} 1... Nf6 {[%clk 0:04:57]} 2. d4 {[%clk 0:04:58.3]}
2... d6 {[%clk 0:04:55.8]} 3. Bf4 {[%clk 0:04:57.9]} 3... Bg4 {[%clk 0:04:54]}
4. e3 {[%clk 0:04:57.3]} 4... Nbd7 {[%clk 0:04:51.7]} 5. Be2 {[%clk 0:04:56.5]}
5... c6 {[%clk 0:04:47.4]} 6. Nbd2 {[%clk 0:04:54.9]} 6... g6 {[%clk 0:04:41.8]}
7. c3 {[%clk 0:04:46.9]} 7... Bg7 {[%clk 0:04:40.1]} 8. Qb3 {[%clk 0:04:40.8]}
8... Nb6 {[%clk 0:04:34]} 9. a4 {[%clk 0:04:38.9]} 9... a5 {[%clk 0:04:29.9]}
10. Nc4 {[%clk 0:04:27.6]} 10... Nxc4 {[%clk 0:04:27.7]} 11. Bxc4 {[%clk
0:04:24.9]} 11... d5 {[%clk 0:04:17]} 12. Qxb7 {[%clk 0:04:12.9]} 12... dxc4
{[%clk 0:04:15.8]} 13. Qxc6+ {[%clk 0:04:11.8]} 13... Kf8 {[%clk 0:04:10]} 14.
Qxc4 {[%clk 0:04:05.3]} 14... Bxf3 {[%clk 0:04:09.2]} 15. gxf3 {[%clk
0:04:04.3]} 15... Qd5 {[%clk 0:03:47.6]} 16. Qxd5 {[%clk 0:03:43.9]} 16... Nxd5
{[%clk 0:03:46.2]} 17. Bg3 {[%clk 0:03:42.7]} 17... e6 {[%clk 0:03:31.2]} 18.
Kd2 {[%clk 0:03:33.6]} 18... Ke7 {[%clk 0:03:29.2]} 19. e4 {[%clk 0:03:30]}
19... Nb6 {[%clk 0:03:18.8]} 20. Kd3 {[%clk 0:03:26.5]} 20... Rhc8 {[%clk
0:03:13.6]} 21. b3 {[%clk 0:03:13.8]} 21... Rc6 {[%clk 0:02:53.5]} 22. Rhc1
{[%clk 0:02:56.4]} 22... Bh6 {[%clk 0:02:32.3]} 23. Rc2 {[%clk 0:02:42.5]} 23...
Bg5 {[%clk 0:02:30.5]} 24. h4 {[%clk 0:02:35.4]} 24... Bf6 {[%clk 0:02:25.8]}
25. e5 {[%clk 0:02:34.7]} 25... Bg7 {[%clk 0:02:22.2]} 26. Bf4 {[%clk 0:02:29]}
26... Nd5 {[%clk 0:02:18.3]} 27. Bg5+ {[%clk 0:02:25]} 27... f6 {[%clk
0:02:15.5]} 28. exf6+ {[%clk 0:02:23.8]} 28... Bxf6 {[%clk 0:02:15]} 29. Rac1
{[%clk 0:02:10.6]} 29... Bxg5 {[%clk 0:02:07.5]} 30. hxg5 {[%clk 0:02:09.5]}
30... Rb8 {[%clk 0:01:48.5]} 31. Rb2 {[%clk 0:01:52.8]} 31... Nf4+ {[%clk
0:01:41.3]} 32. Ke4 {[%clk 0:01:44.6]} 32... Nh3 {[%clk 0:01:38.1]} 33. Rh1
{[%clk 0:01:37.4]} 33... Nxg5+ {[%clk 0:01:36.4]} 34. Ke3 {[%clk 0:01:31.2]}
34... Rh8 {[%clk 0:01:25.2]} 35. c4 {[%clk 0:01:28.9]} 35... Rcc8 {[%clk
0:01:14.3]} 36. f4 {[%clk 0:01:19.7]} 36... Nf7 {[%clk 0:01:12.3]} 37. Kd3
{[%clk 0:01:09.3]} 37... Nd6 {[%clk 0:01:11.5]} 38. Re2 {[%clk 0:01:05.4]} 38...
Rb8 {[%clk 0:01:04.6]} 39. Kc3 {[%clk 0:00:59.1]} 39... Rbf8 {[%clk 0:00:57.5]}
40. Rhe1 {[%clk 0:00:51.4]} 40... Rf6 {[%clk 0:00:55.3]} 41. d5 {[%clk
0:00:43.9]} 41... Nf5 {[%clk 0:00:42.2]} 42. Rxe6+ {[%clk 0:00:39.9]} 42... Rxe6
{[%clk 0:00:41]} 43. Rxe6+ {[%clk 0:00:39.1]} 43... Kf7 {[%clk 0:00:38.5]} 44.
c5 {[%clk 0:00:36.4]} 44... h5 {[%clk 0:00:34.6]} 45. c6 {[%clk 0:00:32.9]}
45... h4 {[%clk 0:00:33.4]} 46. c7 {[%clk 0:00:30.3]} 46... h3 {[%clk
0:00:29.6]} 47. Re1 {[%clk 0:00:17.5]} 47... Rc8 {[%clk 0:00:20.3]} 48. Rh1
{[%clk 0:00:16.5]} 48... Rxc7+ {[%clk 0:00:19.1]} 49. Kd3 {[%clk 0:00:16.1]}
49... Rd7 {[%clk 0:00:15.5]} 50. Ke4 {[%clk 0:00:14.6]} 50... Nd6+ {[%clk
0:00:12.4]} 51. Kf3 {[%clk 0:00:14.1]} 51... Nb7 {[%clk 0:00:09.6]} 52. Rd1
{[%clk 0:00:13.1]} 52... Nc5 {[%clk 0:00:08.2]} 53. b4 {[%clk 0:00:10.8]} 53...
Nb3 {[%clk 0:00:07.5]} 54. bxa5 {[%clk 0:00:09.6]} 54... Nxa5 {[%clk 0:00:06.7]}
55. Kg3 {[%clk 0:00:08.9]} 55... Nc4 {[%clk 0:00:06.1]} 56. Kxh3 {[%clk
0:00:08.3]} 56... Ne3 {[%clk 0:00:05.5]} 57. fxe3 {[%clk 0:00:07.3]} 57... Rd6
{[%clk 0:00:04.9]} 58. e4 {[%clk 0:00:06.8]} 58... g5 {[%clk 0:00:04.5]} 59. e5
{[%clk 0:00:06.1]} 59... Rh6+ {[%clk 0:00:04.2]} 60. Kg4 {[%clk 0:00:05.3]}
60... Rh4+ {[%clk 0:00:03.1]} 61. Kxg5 {[%clk 0:00:05]} 61... Rh3 {[%clk
0:00:02.7]} 62. Rg1 {[%clk 0:00:04.3]} 62... Ra3 {[%clk 0:00:02.4]} 63. Rg4
{[%clk 0:00:03.8]} 63... Rxa4 {[%clk 0:00:02.1]} 64. Kf5 {[%clk 0:00:03.7]}
64... Ra5 {[%clk 0:00:01.5]} 65. e6+ {[%clk 0:00:03.4]} 65... Ke7 {[%clk
0:00:00.2]} 66. Ke5 {[%clk 0:00:03.3]} 1-0

[Event "Live Chess"]
[Site "Chess.com"]
[Date "2023.05.21"]
[Round "-"]
[White "TheSmoulderingMaster"]
[Black "grillage"]
[Result "0-1"]
[WhiteElo "1659"]
[BlackElo "1787"]
[TimeControl "300"]
[EndTime "7:08:33 PDT"]
[Termination "grillage won by checkmate"]

1. e4 {[%clk 0:04:58.1]} 1... d5 {[%clk 0:04:58.7]} 2. exd5 {[%clk 0:04:56.9]}
2... Qxd5 {[%clk 0:04:58]} 3. Nc3 {[%clk 0:04:56.3]} 3... Qd8 {[%clk 0:04:56.4]}
4. d4 {[%clk 0:04:55.4]} 4... Nf6 {[%clk 0:04:54.2]} 5. Nf3 {[%clk 0:04:54.3]}
5... Bg4 {[%clk 0:04:53.1]} 6. Be2 {[%clk 0:04:45.5]} 6... e6 {[%clk 0:04:50.6]}
7. O-O {[%clk 0:04:43.8]} 7... c6 {[%clk 0:04:47.5]} 8. h3 {[%clk 0:04:42.9]}
8... Bxf3 {[%clk 0:04:45.2]} 9. Bxf3 {[%clk 0:04:42.1]} 9... Nbd7 {[%clk
0:04:44.2]} 10. Bg5 {[%clk 0:04:39.5]} 10... Be7 {[%clk 0:04:43.2]} 11. Re1
{[%clk 0:04:38.1]} 11... O-O {[%clk 0:04:42.2]} 12. Qd2 {[%clk 0:04:33.9]} 12...
Re8 {[%clk 0:04:34.5]} 13. Ne2 {[%clk 0:04:29.2]} 13... Nd5 {[%clk 0:04:30]} 14.
Bxe7 {[%clk 0:04:25.3]} 14... Rxe7 {[%clk 0:04:27.8]} 15. c4 {[%clk 0:04:24.1]}
15... N5f6 {[%clk 0:04:24.1]} 16. Qg5 {[%clk 0:04:18.7]} 16... h6 {[%clk
0:04:12.3]} 17. Qg3 {[%clk 0:04:13.4]} 17... Nb6 {[%clk 0:04:09.4]} 18. c5
{[%clk 0:04:10.4]} 18... Nbd5 {[%clk 0:04:08.1]} 19. Nf4 {[%clk 0:04:07.2]}
19... Nxf4 {[%clk 0:04:06.4]} 20. Qxf4 {[%clk 0:04:07.1]} 20... Rd7 {[%clk
0:04:01.6]} 21. Rad1 {[%clk 0:04:03.2]} 21... Qa5 {[%clk 0:03:59.3]} 22. a3
{[%clk 0:03:58.4]} 22... Rad8 {[%clk 0:03:54.4]} 23. b4 {[%clk 0:03:36.1]} 23...
Qxa3 {[%clk 0:03:49.9]} 24. b5 {[%clk 0:03:33.8]} 24... Qb4 {[%clk 0:03:39.4]}
25. bxc6 {[%clk 0:03:30.3]} 25... bxc6 {[%clk 0:03:37.8]} 26. Bxc6 {[%clk
0:03:27.1]} 26... Rxd4 {[%clk 0:03:34.8]} 27. Rxd4 {[%clk 0:03:24.3]} 27... Qxd4
{[%clk 0:03:28.2]} 28. Qxd4 {[%clk 0:03:22.7]} 28... Rxd4 {[%clk 0:03:27.3]} 29.
Bb7 {[%clk 0:03:21.6]} 29... Rc4 {[%clk 0:03:22.4]} 30. c6 {[%clk 0:03:20.4]}
30... Nd5 {[%clk 0:03:21.1]} 31. Rd1 {[%clk 0:02:54.7]} 31... Kf8 {[%clk
0:03:16.6]} 32. Ra1 {[%clk 0:02:48.3]} 32... Ke7 {[%clk 0:03:12.8]} 33. Rxa7
{[%clk 0:02:45.7]} 33... Kd6 {[%clk 0:03:12.3]} 34. Ra8 {[%clk 0:02:40.1]} 34...
Nb4 {[%clk 0:03:04.1]} 35. Rd8+ {[%clk 0:02:36.1]} 35... Ke5 {[%clk 0:02:53.4]}
36. Rc8 {[%clk 0:02:32.1]} 36... Kd6 {[%clk 0:02:45.7]} 37. Rf8 {[%clk
0:02:26.4]} 37... Ke7 {[%clk 0:02:34.5]} 38. Rg8 {[%clk 0:02:21.9]} 38... g6
{[%clk 0:02:32.4]} 39. Rh8 {[%clk 0:02:11.8]} 39... h5 {[%clk 0:02:31.8]} 40.
Rc8 {[%clk 0:02:06.1]} 40... Kd6 {[%clk 0:02:28.1]} 41. g3 {[%clk 0:02:01.9]}
41... Nxc6 {[%clk 0:02:24.5]} 42. Rf8 {[%clk 0:01:51.3]} 42... Ke7 {[%clk
0:02:18.1]} 43. Rc8 {[%clk 0:01:43.7]} 43... Ne5 {[%clk 0:02:15.7]} 44. Ra8
{[%clk 0:01:36]} 44... Kf6 {[%clk 0:02:10.4]} 45. Ra5 {[%clk 0:01:30.2]} 45...
g5 {[%clk 0:02:03.7]} 46. Ba6 {[%clk 0:01:24.8]} 46... Rc1+ {[%clk 0:01:56.5]}
47. Kg2 {[%clk 0:01:23]} 47... g4 {[%clk 0:01:56]} 48. hxg4 {[%clk 0:01:21.1]}
48... hxg4 {[%clk 0:01:55.3]} 49. Ra4 {[%clk 0:01:16.4]} 49... Kg5 {[%clk
0:01:46.9]} 50. Ra5 {[%clk 0:01:14.4]} 50... f6 {[%clk 0:01:45.1]} 51. Bb5
{[%clk 0:01:09.4]} 51... Rc5 {[%clk 0:01:38.5]} 52. Kf1 {[%clk 0:00:56.3]} 52...
Nc6 {[%clk 0:01:30]} 53. Ra6 {[%clk 0:00:52.3]} 53... Nd4 {[%clk 0:01:16.7]} 54.
Bd3 {[%clk 0:00:48.3]} 54... f5 {[%clk 0:01:11.3]} 55. Ra8 {[%clk 0:00:44.8]}
55... Kf6 {[%clk 0:01:09.4]} 56. Rd8 {[%clk 0:00:40.8]} 56... Nf3 {[%clk
0:01:07.7]} 57. Rf8+ {[%clk 0:00:37.2]} 57... Ke5 {[%clk 0:01:06.4]} 58. Ra8
{[%clk 0:00:35.6]} 58... Rc1+ {[%clk 0:01:05]} 59. Ke2 {[%clk 0:00:32.5]} 59...
Re1# {[%clk 0:01:02.9]} 0-1

[Event "Live Chess"]
[Site "Chess.com"]
[Date "2023.05.21"]
[Round "-"]
[White "FlyingChessKestrel13"]
[Black "AbilifyXL"]
[Result "1/2-1/2"]
[WhiteElo "2061"]
[BlackElo "1970"]
[TimeControl "300"]
[EndTime "7:08:57 PDT"]
[Termination "Game drawn by agreement"]

1. e4 {[%clk 0:04:58.6]} 1... d5 {[%clk 0:04:59]} 2. exd5 {[%clk 0:04:49.3]}
2... Qxd5 {[%clk 0:04:58]} 3. Nc3 {[%clk 0:04:39.2]} 3... Qa5 {[%clk 0:04:56.9]}
4. Nf3 {[%clk 0:04:37.8]} 4... c6 {[%clk 0:04:55.2]} 5. d4 {[%clk 0:04:36.5]}
5... Nf6 {[%clk 0:04:53.4]} 6. Bc4 {[%clk 0:04:34.9]} 6... Bg4 {[%clk
0:04:52.4]} 7. O-O {[%clk 0:04:33.1]} 7... e6 {[%clk 0:04:50.4]} 8. Be3 {[%clk
0:04:31.6]} 8... Nbd7 {[%clk 0:04:49.3]} 9. h3 {[%clk 0:04:29.8]} 9... Bh5
{[%clk 0:04:48.2]} 10. Be2 {[%clk 0:04:28.6]} 10... Bb4 {[%clk 0:04:46.1]} 11.
Nb1 {[%clk 0:04:19.8]} 11... O-O {[%clk 0:04:43.8]} 12. c3 {[%clk 0:04:18.7]}
12... Bd6 {[%clk 0:04:42.7]} 13. Nbd2 {[%clk 0:04:17.4]} 13... Qc7 {[%clk
0:04:41.7]} 14. Ne1 {[%clk 0:04:11.8]} 14... Bg6 {[%clk 0:04:38.9]} 15. Bd3
{[%clk 0:04:09.7]} 15... Rad8 {[%clk 0:04:36.9]} 16. Bxg6 {[%clk 0:04:07.7]}
16... hxg6 {[%clk 0:04:36.8]} 17. Nd3 {[%clk 0:04:05.4]} 17... Rfe8 {[%clk
0:04:34.9]} 18. Qc2 {[%clk 0:04:02.2]} 18... c5 {[%clk 0:04:33.6]} 19. Nxc5
{[%clk 0:03:59.7]} 19... Nxc5 {[%clk 0:04:31.7]} 20. dxc5 {[%clk 0:03:59]} 20...
Bxc5 {[%clk 0:04:30.8]} 21. Bxc5 {[%clk 0:03:57.6]} 21... Qxc5 {[%clk
0:04:30.1]} 22. Nb3 {[%clk 0:03:50.4]} 1/2-1/2